fUST/lending_fUST_20250815
["ID","MTS","AMOUNT","RATE_DAILY","PERIOD"]
[379250364,1755226232140,-500.0,0.00020286,2]
[379250366,1755226232150,-330.175285,0.00020329,2]
[379250367,1755226232159,-1899.8551027,0.00020452,2]
[379250368,1755226232169,-171.07940272,0.00020685,2]
[379250369,1755226232180,-122.56435588,0.00020685,2]
[379250371,1755226232190,-1200.0,0.00020788,2]
[379250372,1755226232200,-2716.0601993,0.00020789,2]
[379250379,1755226237873,-2283.9398007,0.00020789,2]
[379250380,1755226237884,-303.9194139,0.00020878,2]
[379250381,1755226237894,-293.6437586,0.000209,2]
[379250382,1755226237903,-250.52158689,0.00021059,2]
[379250383,1755226237912,-300.0,0.00021123,2]
[379250384,1755226237921,-211.95753654,0.00021123,2]
[379250435,1755226240119,-88.04246346,0.00021123,2]
[379250437,1755226240128,-1790.61707131,0.00021125,2]
[379250439,1755226240139,-402.52577183,0.00021152,2]
[379250441,1755226240152,-460.0,0.0002125,2]
[379250443,1755226240162,-821.6146934,0.0002125,2]
[379250632,1755226999538,181.0,0.00030136,120]
[379250633,1755227239131,-174.36071316,0.00019025,2]
[379250634,1755227239153,-347.622555,0.00019863,2]
[379250635,1755227239328,-379.0,0.0001991,2]
[379250636,1755227239351,-300.0,0.0001991,2]
[379250637,1755227239372,-2155.83095636,0.00019911,2]
[379250683,1755227438301,-501.4963,0.00019911,2]
[379250685,1755227438314,-423.79166931,0.00019911,2]
[379250687,1755227438325,-6918.88107433,0.00019911,2]
[379250689,1755227438335,-272.5359392,0.00019997,2]
[379250691,1755227438345,-500.0,0.00020286,2]
[379250693,1755227438355,-300.0,0.00020307,2]
[379250695,1755227438364,-1604.89157508,0.00020308,2]
[379250697,1755227438373,-200.0,0.00020308,20]
[379250699,1755227438382,-200.0,0.00020308,20]
[379250701,1755227438391,-200.0,0.00020308,20]
[379250703,1755227438400,-200.0,0.00020308,20]
[379250705,1755227438410,-200.0,0.00020308,20]
[379250707,1755227438420,-200.0,0.00020308,20]
[379250709,1755227438429,-200.0,0.00020308,20]
[379250711,1755227438439,-200.0,0.00020308,20]
[379250713,1755227438448,-181.71384191,0.00020886,2]
[379250715,1755227438457,-2183.31810187,0.00020887,2]
[379250717,1755227438466,-460.0,0.00020899,2]
[379250719,1755227438475,-460.0,0.00020899,2]
[379250721,1755227438485,-272.81762511,0.000209,2]
[379250723,1755227438495,-28738.90940818,0.000209,2]
[379250725,1755227438504,-2264.10087164,0.00020942,2]
[379250727,1755227438513,-500.0,0.00020973,2]
[379250729,1755227438522,-501.47569652,0.00020973,2]
[379250731,1755227438531,-500.0,0.00020973,2]
[379250733,1755227438540,-573.15541073,0.00020973,2]
[379250735,1755227438549,-528.6354037,0.00020973,2]
[379250737,1755227438559,-500.0,0.00020973,2]
[379250739,1755227438568,-500.0,0.00020973,2]
[379250741,1755227438577,-354.02407932,0.00020973,2]
[379250743,1755227438587,-500.0,0.00020973,2]
[379250745,1755227438596,-500.0,0.00020973,2]
[379250747,1755227438605,-500.0,0.00020973,2]
[379250749,1755227438614,-500.0,0.00020973,2]
[379250751,1755227438624,-500.0,0.00020974,2]
[379250753,1755227438633,-500.0,0.00020974,2]
[379250755,1755227438642,-367.110025,0.00020974,2]
[379250757,1755227438652,-389.27238089,0.00020974,2]
[379250759,1755227438661,-153.85553971,0.00020974,2]
[379250762,1755227438673,-97.84861334,0.00020974,2]
[379250764,1755227438682,-500.0,0.00020974,2]
[379250766,1755227438691,-500.0,0.00020974,2]
[379250768,1755227438701,-232.40839989,0.00020974,2]
[379250770,1755227438710,-500.0,0.00020974,2]
[379250771,1755227438719,-500.0,0.00020974,2]
[379250773,1755227438729,-151.0,0.00020975,2]
[379250775,1755227438738,-151.0,0.00020975,2]
[379250777,1755227438748,-151.0,0.00020975,2]
[379250779,1755227438757,-151.57039496,0.00020975,2]
[379250781,1755227438766,-151.0,0.00020975,2]
[379250783,1755227438775,-151.0,0.00020975,2]
[379250785,1755227438784,-151.0,0.00020975,2]
[379250787,1755227438793,-154.88901469,0.00020975,2]
[379250789,1755227438801,-151.0,0.00020975,2]
[379250791,1755227438810,-151.0,0.00020975,2]
[379250793,1755227438819,-151.0,0.00020975,2]
[379250795,1755227438829,-151.0,0.00020975,2]
[379250810,1755227438955,-151.0,0.00020975,2]
[379250812,1755227438968,-151.0,0.00020975,2]
[379250814,1755227438979,-500.0,0.00020975,2]
[379250816,1755227438988,-151.0,0.00020975,2]
[379250818,1755227439001,-151.0,0.00020975,2]
[379250820,1755227439010,-151.0,0.00020975,2]
[379250822,1755227439020,-500.0,0.00020975,2]
[379250824,1755227439029,-151.0,0.00020975,2]
[379250826,1755227439038,-151.0,0.00020975,2]
[379250828,1755227439047,-151.0,0.00020975,2]
[379250830,1755227439056,-500.0,0.00020975,2]
[379250832,1755227439065,-151.0,0.00020975,2]
[379250834,1755227439074,-151.0,0.00020975,2]
[379250836,1755227439084,-151.0,0.00020975,2]
[379250838,1755227439093,-155.93355749,0.00020975,2]
[379250839,1755227439102,-500.0,0.00020975,2]
[379250841,1755227439111,-151.0,0.00020975,2]
[379250844,1755227439121,-151.0,0.00020975,2]
[379250846,1755227439131,-500.0,0.00020975,2]
[379250848,1755227439140,-151.0,0.00020975,2]
[379250850,1755227439150,-10955.91001963,0.00020975,2]
[379250852,1755227439170,-6886.61242837,0.00020975,2]
[379250854,1755227439179,-151.0,0.00020975,2]
[379250856,1755227439188,-151.0,0.00020975,2]
[379250858,1755227439197,-500.0,0.00020975,2]
[379250860,1755227439206,-153.0131741,0.00020975,2]
[379250862,1755227439215,-500.0,0.00020975,2]
[379250864,1755227439225,-151.0,0.00020975,2]
[379250866,1755227439234,-500.0,0.00020975,2]
[379250868,1755227439244,-151.0,0.00020975,2]
[379250870,1755227439253,-500.0,0.00020975,2]
[379250872,1755227439262,-151.0,0.00020975,2]
[379250874,1755227439271,-500.0,0.00020975,2]
[379250876,1755227439280,-151.0,0.00020975,2]
[379250878,1755227439290,-151.0,0.00020975,2]
[379250880,1755227439299,-500.0,0.00020975,2]
[379250882,1755227439308,-151.0,0.00020975,2]
[379250884,1755227439317,-151.65869679,0.00020975,2]
[379250886,1755227439326,-151.0,0.00020975,2]
[379250888,1755227439336,-500.0,0.00020975,2]
[379250890,1755227439345,-151.0,0.00020975,2]
[379250892,1755227439354,-500.0,0.00020975,2]
[379250894,1755227439363,-151.0,0.00020975,2]
[379250896,1755227439373,-151.0,0.00020975,2]
[379250898,1755227439382,-500.0,0.00020975,2]
[379250900,1755227439392,-151.0,0.00020975,2]
[379250902,1755227439401,-151.0,0.00020975,2]
[379250904,1755227439410,-151.0,0.00020975,2]
[379250906,1755227439419,-500.0,0.00020975,2]
[379250908,1755227439428,-151.0,0.00020975,2]
[379250910,1755227439436,-151.0,0.00020975,2]
[379250912,1755227439445,-500.0,0.00020975,2]
[379250914,1755227439454,-151.0,0.00020975,2]
[379250916,1755227439463,-151.0,0.00020975,2]
[379250918,1755227439472,-541.27593857,0.00020975,2]
[379250920,1755227439481,-151.0,0.00020975,2]
[379250922,1755227439490,-151.0,0.00020975,2]
[379250924,1755227439499,-151.0,0.00020975,2]
[379250926,1755227439508,-151.0,0.00020975,2]
[379250928,1755227439517,-151.0,0.00020975,2]
[379250930,1755227439527,-151.0,0.00020975,2]
[379250932,1755227439536,-151.0,0.00020975,2]
[379250934,1755227439547,-151.0,0.00020975,2]
[379250936,1755227439557,-236.20046436,0.00020975,2]
[379250937,1755227439566,-155.36903719,0.00020975,2]
[379250939,1755227439575,-151.0,0.00020975,2]
[379250941,1755227439584,-151.0,0.00020975,2]
[379250943,1755227439593,-151.0,0.00020975,2]
[379250945,1755227439602,-151.0,0.00020975,2]
[379250948,1755227439611,-873.84,0.0002098,10]
[379250951,1755227439620,-728.2,0.0002098,10]
[379250953,1755227439630,-160.0,0.00020985,2]
[379250956,1755227439639,-160.0,0.00020985,2]
[379250958,1755227439648,-215.63758983,0.00020985,2]
[379250960,1755227439657,-462.0440047,0.00020985,2]
[379250962,1755227439666,-160.0,0.00020986,2]
[379250964,1755227439674,-160.0,0.00020986,2]
[379250966,1755227439683,-160.0,0.00020986,2]
[379250968,1755227439693,-160.0,0.00020986,2]
[379250970,1755227439702,-160.0,0.00020986,2]
[379250972,1755227439712,-160.0,0.00020986,2]
[379250975,1755227439721,-151.0,0.00020987,2]
[379250977,1755227439731,-154.588058,0.00020987,2]
[379250979,1755227439740,-156.072889,0.00020987,2]
[379250981,1755227439750,-1669.62,0.00020987,2]
[379250983,1755227439759,-151.0,0.00020987,2]
[379250985,1755227439768,-153.513517,0.00020987,2]
[379250987,1755227439777,-151.0,0.00020987,2]
[379250989,1755227439786,-160.343661,0.00020987,2]
[379250991,1755227439795,-151.0,0.00020987,2]
[379250993,1755227439804,-151.0,0.00020987,2]
[379250995,1755227439814,-151.0,0.0002099,2]
[379250997,1755227439824,-723.06,0.0002099,3]
[379250998,1755227439833,-723.06,0.0002099,3]
[379251000,1755227439843,-1258.32,0.0002099,10]
[379251002,1755227439853,-1048.6,0.0002099,10]
[379251004,1755227439863,-290.0064378,0.00020997,2]
[379251006,1755227439873,-1553.14664049,0.00020997,2]
[379251008,1755227439882,-151.0,0.00020999,2]
[379251010,1755227439892,-151.0,0.00020999,2]
[379251013,1755227439902,-500.0,0.00020999,2]
[379251014,1755227439911,-500.0,0.00020999,2]
[379251016,1755227439922,-500.0,0.00020999,2]
[379251018,1755227439932,-500.0,0.00020999,2]
[379251020,1755227439941,-500.0,0.00020999,2]
[379251022,1755227439950,-500.0,0.00020999,2]
[379251024,1755227439959,-575.91709968,0.00020999,2]
[379251026,1755227439969,-500.0,0.00020999,2]
[379251028,1755227439979,-500.0,0.00020999,2]
[379251030,1755227439988,-500.0,0.00020999,2]
[379251032,1755227439997,-500.0,0.00020999,2]
[379251034,1755227440007,-500.0,0.00020999,2]
[379251036,1755227440017,-500.0,0.00020999,2]
[379251038,1755227440027,-500.0,0.00020999,2]
[379251040,1755227440036,-500.0,0.00020999,2]
[379251042,1755227440046,-500.0,0.00020999,2]
[379251044,1755227440055,-500.0,0.00020999,2]
[379251046,1755227440065,-500.0,0.00020999,2]
[379251048,1755227440074,-500.0,0.00020999,2]
[379251050,1755227440083,-500.0,0.00020999,2]
[379251052,1755227440092,-550.0,0.00020999,2]
[379251054,1755227440102,-42866.69,0.00021,2]
[379251056,1755227440112,-446887.88,0.00021,2]
[379251058,1755227440122,-524.02312099,0.00021,2]
[379251060,1755227440131,-587.2875172,0.00021,2]
[379251062,1755227440140,-151.0,0.00021,2]
[379251064,1755227440150,-151.0,0.00021,2]
[379251066,1755227440161,-293.6830486,0.00021,2]
[379251068,1755227440175,-151.0,0.00021,2]
[379251070,1755227440185,-175.442177,0.00021,2]
[379251072,1755227440195,-151.0,0.00021,2]
[379251074,1755227440204,-271.372667,0.00021,2]
[379251076,1755227440217,-151.0,0.00021,2]
[379251078,1755227440227,-151.0,0.00021,2]
[379251080,1755227440236,-151.0,0.00021,2]
[379251082,1755227440247,-259.68864,0.00021,2]
[379251084,1755227440258,-219.337592,0.00021,2]
[379251086,1755227440267,-151.0,0.00021,2]
[379251088,1755227440276,-210.500979,0.00021,2]
[379251090,1755227440286,-460.0,0.00021173,2]
[379251092,1755227440295,-460.0,0.00021173,2]
[379251094,1755227440306,-200.0,0.000212,2]
[379251096,1755227440315,-1761.0,0.00021247,2]
[379251098,1755227440323,-1168.40384014,0.00021247,2]
[379251100,1755227440334,-464.59267224,0.00021251,2]
[379251102,1755227440343,-1669.62,0.00021261,2]
[379251104,1755227440352,-675.83,0.00021283,2]
[379251106,1755227440361,-157.19112112,0.00021297,2]
[379251108,1755227440370,-370.0189316,0.000213,2]
[379251110,1755227440379,-203.84,0.000213,2]
[379251112,1755227440388,-778.0,0.00021352,2]
[379251114,1755227440398,-151.0,0.00021352,2]
[379251116,1755227440408,-200.40851091,0.00021352,2]
[379251118,1755227440417,-154.34559318,0.00021352,2]
[379251120,1755227440426,-170.89072071,0.00021352,2]
[379251122,1755227440435,-151.0,0.00021352,2]
[379251124,1755227440444,-152.81391728,0.00021352,2]
[379251126,1755227440453,-151.0,0.00021352,2]
[379251128,1755227440462,-151.0,0.00021352,2]
[379251130,1755227440471,-151.0,0.00021352,2]
[379251132,1755227440480,-151.0,0.00021352,2]
[379251134,1755227440489,-151.0,0.00021352,2]
[379251136,1755227440498,-151.0,0.00021352,2]
[379251138,1755227440507,-843.47195277,0.00021358,2]
[379251140,1755227440516,-460.0,0.00021368,2]
[379251142,1755227440524,-502.39541314,0.00021368,2]
[379251144,1755227440534,-10727.6326994,0.00021369,7]
[379251146,1755227440543,-500.0,0.00021382,2]
[379251148,1755227440552,-152.93987,0.00021382,2]
[379251150,1755227440561,-151.0,0.00021417,2]
[379251152,1755227440571,-151.0,0.00021417,2]
[379251154,1755227440580,-198.03490737,0.00021447,2]
[379251156,1755227440589,-460.0,0.00021447,2]
[379251158,1755227440598,-160.0,0.00021471,2]
[379251160,1755227440607,-484.0575635,0.00021521,2]
[379251162,1755227440616,-501.90778874,0.00021521,2]
[379251164,1755227440624,-1000.0,0.00021521,2]
[379251166,1755227440634,-1000.0,0.00021521,2]
[379251168,1755227440643,-322.57107324,0.00021521,2]
[379251170,1755227440652,-1000.0,0.00021521,2]
[379251172,1755227440661,-1000.0,0.00021521,2]
[379251174,1755227440670,-1000.0,0.00021521,2]
[379251176,1755227440679,-1669.62,0.00021535,2]
[379251178,1755227440689,-778.0,0.00021626,2]
[379251180,1755227440698,-151.0,0.00021626,2]
[379251182,1755227440707,-151.0,0.00021626,2]
[379251184,1755227440717,-276.16591178,0.00021626,2]
[379251186,1755227440726,-151.0,0.00021626,2]
[379251188,1755227440735,-151.0,0.00021626,2]
[379251190,1755227440744,-151.0,0.00021626,2]
[379251192,1755227440753,-151.0,0.00021626,2]
[379251194,1755227440763,-460.0,0.00021642,2]
[379251196,1755227440772,-460.0,0.00021721,2]
[379251198,1755227440781,-1000.0,0.000218,2]
[379251200,1755227440791,-1000.0,0.000218,3]
[379251202,1755227440800,-1669.62,0.00021809,2]
[379251204,1755227440809,-400.0,0.00021835,3]
[379251206,1755227440818,-151.0,0.00021835,2]
[379251208,1755227440827,-198.300587,0.00021835,2]
[379251210,1755227440835,-151.0,0.00021835,2]
[379251212,1755227440844,-151.0,0.00021835,2]
[379251214,1755227440853,-151.0,0.00021835,2]
[379251216,1755227440862,-232.05637125,0.00021891,2]
[379251218,1755227440871,-216.75489391,0.00021892,2]
[379251220,1755227440880,-778.0,0.000219,2]
[379251222,1755227440889,-151.0,0.000219,2]
[379251224,1755227440898,-151.0,0.000219,2]
[379251226,1755227440907,-153.96386,0.000219,2]
[379251228,1755227440916,-155.84646223,0.000219,2]
[379251229,1755227440925,-173.64951238,0.000219,2]
[379251231,1755227440934,-460.0,0.00021916,2]
[379251233,1755227440943,-151.0,0.00021917,2]
[379251235,1755227440951,-500.0,0.00021917,2]
[379251237,1755227440960,-500.0,0.00021917,2]
[379251239,1755227440970,-500.0,0.00021917,2]
[379251241,1755227440979,-315.89109717,0.00021918,6]
[379251243,1755227440988,-200.3895438,0.00021918,2]
[379251245,1755227440996,-168.0,0.00021919,2]
[379251247,1755227441007,-976.362,0.00021945,2]
[379251249,1755227441016,-2161.052,0.00021945,2]
[379251251,1755227441025,-638.84,0.00021945,2]
[379251253,1755227441034,-447.611,0.00021945,2]
[379251255,1755227441043,-460.0,0.00021995,2]
[379251257,1755227441052,-174.0,0.00022,2]
[379251259,1755227441062,-260.0,0.00022019,2]
[379251261,1755227441071,-152.670986,0.00022022,7]
[379251263,1755227441081,-511.07954238,0.00022047,2]
[379251265,1755227441090,-501.00479947,0.00022047,2]
[379251267,1755227441099,-151.336665,0.00022067,7]
[379251269,1755227441110,-151.0,0.00022067,7]
[379251270,1755227441119,-151.0,0.00022067,7]
[379251271,1755227441129,-1500.0,0.00022068,2]
[379251272,1755227441138,-1500.0,0.00022068,2]
[379251273,1755227441147,-1500.0,0.00022068,2]
[379251274,1755227441156,-1500.0,0.00022068,2]
[379251275,1755227441168,-1500.0,0.00022068,2]
[379251276,1755227441177,-501.66700394,0.00022078,2]
[379251277,1755227441187,-500.0,0.00022078,2]
[379251278,1755227441196,-511.86882009,0.00022078,2]
[379251279,1755227441205,-503.62809087,0.00022078,2]
[379251280,1755227441214,-501.01269436,0.00022078,2]
[379251281,1755227441223,-501.06879491,0.00022078,2]
[379251282,1755227441232,-500.97403858,0.00022078,2]
[379251283,1755227441242,-501.1558934,0.00022078,2]
[379251284,1755227441251,-1669.62,0.00022083,2]
[379251285,1755227441260,-420.0,0.00022105,2]
[379251286,1755227441270,-500.99528117,0.0002215,2]
[379251287,1755227441279,-466.1254346,0.0002215,2]
[379251288,1755227441288,-500.0,0.0002215,2]
[379251289,1755227441298,-566.55677288,0.0002215,2]
[379251290,1755227441307,-778.0,0.00022174,2]
[379251291,1755227441316,-248.88448752,0.00022174,2]
[379251292,1755227441325,-201.98535992,0.00022174,2]
[379251293,1755227441334,-460.0,0.0002219,2]
[379251294,1755227441343,-500.0,0.0002219,2]
[379251295,1755227441352,-168.0,0.00022209,2]
[379251296,1755227441361,-168.0,0.00022224,2]
[379251297,1755227441370,-460.0,0.00022269,2]
[379251298,1755227441380,-151.0,0.00022294,7]
[379251300,1755227441390,-200.0,0.00022296,20]
[379251301,1755227441400,-200.0,0.00022296,20]
[379251303,1755227441410,-200.0,0.00022296,20]
[379251305,1755227441419,-200.0,0.00022296,20]
[379251307,1755227441428,-200.0,0.00022296,20]
[379251309,1755227441438,-200.0,0.00022296,20]
[379251311,1755227441447,-200.0,0.00022296,20]
[379251313,1755227441457,-200.0,0.00022296,20]
[379251315,1755227441467,-200.0,0.00022296,20]
[379251317,1755227441477,-200.0,0.00022296,20]
[379251319,1755227441487,-240.0,0.00022296,20]
[379251321,1755227441497,-1351.66,0.00022297,2]
[379251323,1755227441507,-152.13285498,0.00022344,2]
[379251325,1755227441516,-18502.69577858,0.00022344,2]
[379251327,1755227441526,-1669.62,0.00022356,2]
[379251329,1755227441535,-168.0,0.00022391,2]
[379251330,1755227441545,-151.263118,0.00022391,7]
[379251332,1755227441554,-254.262335,0.00022391,7]
[379251334,1755227441565,-778.0,0.00022448,2]
[379251336,1755227441574,-168.0,0.00022459,2]
[379251338,1755227441583,-460.0,0.00022464,2]
[379251340,1755227441593,-500.0,0.00022464,2]
[379251342,1755227441602,-500.0,0.00022478,2]
[379251344,1755227441611,-151.0,0.00022483,3]
[379251346,1755227441621,-1472.0,0.00022507,2]
[379251348,1755227441630,-168.0,0.00022518,2]
[379251350,1755227441639,-1472.0,0.00022542,2]
[379251352,1755227441648,-460.0,0.00022543,2]
[379251354,1755227441658,-360.0,0.00022567,2]
[379251356,1755227441667,-168.0,0.00022603,2]
[379251358,1755227441676,-2000.0,0.00022616,2]
[379251360,1755227441685,-1015.30298472,0.00022616,2]
[379251362,1755227441695,-2000.0,0.00022616,2]
[379251364,1755227441704,-2000.0,0.00022616,2]
[379251366,1755227441713,-1844.08688994,0.00022616,2]
[379251368,1755227441722,-1001.53854613,0.00022626,2]
[379251370,1755227441731,-1669.62,0.0002263,2]
[379251372,1755227441740,-200.0,0.0002264,5]
[379251374,1755227441749,-187.7023422,0.00022698,2]
[379251376,1755227441759,-778.0,0.00022722,2]
[379251378,1755227441768,-460.0,0.00022738,2]
[379251380,1755227441777,-500.0,0.00022738,2]
[379251382,1755227441787,-151.0,0.0002275,7]
[379251384,1755227441796,-151.0,0.0002275,7]
[379251386,1755227441805,-168.0,0.00022762,2]
[379251388,1755227441814,-151.0,0.000228,9]
[379251390,1755227441824,-151.0,0.000228,5]
[379251392,1755227441833,-460.0,0.00022817,2]
[379251394,1755227441843,-1000.0,0.00022849,2]
[379251396,1755227441852,-1000.0,0.00022849,2]
[379251398,1755227441861,-207.21061487,0.00022849,2]
[379251400,1755227441871,-28738.90940818,0.00022857,2]
[379251402,1755227441880,-155.05814,0.0002286,7]
[379251404,1755227441889,-153.703311,0.0002286,7]
[379251405,1755227441899,-151.0,0.0002286,7]
[379251407,1755227441908,-151.0,0.00022891,4]
[379251409,1755227441917,-1669.62,0.00022904,2]
[379251411,1755227441926,-151.0,0.00022948,7]
[379251413,1755227441935,-151.0,0.00022949,7]
[379251415,1755227441945,-370000.0,0.00022949,2]
[379251417,1755227441955,-173.80627484,0.00022973,2]
[379251419,1755227441964,-500.84620988,0.00022973,2]
[379251421,1755227441972,-501.81910673,0.00022973,2]
[379251423,1755227441981,-500.90450092,0.00022973,2]
[379251425,1755227441991,-500.0,0.00022973,2]
[379251427,1755227442000,-500.52361372,0.00022973,2]
[379251429,1755227442009,-501.09223596,0.00022973,2]
[379251431,1755227442018,-503.57996843,0.00022973,2]
[379251433,1755227442027,-502.72389841,0.00022973,2]
[379251435,1755227442036,-278.9169061,0.00022973,2]
[379251437,1755227442046,-500.0,0.00022973,2]
[379251440,1755227442065,-573.10465595,0.00022973,2]
[379251442,1755227442076,-500.81013899,0.00022973,2]
[379251444,1755227442085,-504.70031693,0.00022973,2]
[379251446,1755227442095,-500.0,0.00022973,2]
[379251448,1755227442104,-500.0,0.00022973,2]
[379251450,1755227442113,-500.0,0.00022973,2]
[379251452,1755227442122,-500.0,0.00022973,2]
[379251453,1755227442131,-150.0,0.00022973,2]
[379251455,1755227442141,-500.51336136,0.00022973,2]
[379251458,1755227442151,-500.94697458,0.00022973,2]
[379251459,1755227442161,-502.02028895,0.00022973,2]
[379251461,1755227442174,-501.38083939,0.00022973,2]
[379251463,1755227442184,-502.29048762,0.00022973,2]
[379251465,1755227442193,-646.33354425,0.00022973,2]
[379251467,1755227442203,-501.45596703,0.00022973,2]
[379251469,1755227442213,-500.46964947,0.00022973,2]
[379251471,1755227442223,-500.76313786,0.00022973,2]
[379251473,1755227442232,-500.40931168,0.00022973,2]
[379251475,1755227442243,-501.32356324,0.00022973,2]
[379251477,1755227442252,-502.53962512,0.00022973,2]
[379251479,1755227442262,-500.0,0.00022973,2]
[379251481,1755227442271,-500.0,0.00022973,2]
[379251483,1755227442281,-500.91776959,0.00022973,2]
[379251485,1755227442290,-501.10600087,0.00022973,2]
[379251487,1755227442299,-500.52684137,0.00022973,2]
[379251489,1755227442309,-500.0,0.00022973,2]
[379251491,1755227442318,-501.31911278,0.00022973,2]
[379251493,1755227442329,-500.79575579,0.00022973,2]
[379251495,1755227442339,-500.0,0.00022973,2]
[379251497,1755227442348,-500.92981303,0.00022973,2]
[379251499,1755227442357,-500.0,0.00022973,2]
[379251501,1755227442367,-500.0,0.00022973,2]
[379251503,1755227442377,-500.93461381,0.00022973,2]
[379251505,1755227442386,-501.11836318,0.00022973,2]
[379251507,1755227442397,-778.0,0.00022996,2]
[379251509,1755227442409,-500.0,0.00023,8]
[379251511,1755227442419,-150.0,0.00023,5]
[379251528,1755227442586,-500.0,0.00023,8]
[379251530,1755227442596,-150.0,0.00023,10]
[379251532,1755227442605,-446.8347982,0.00023012,2]
[379251534,1755227442615,-500.0,0.00023012,2]
[379251536,1755227442624,-151.0,0.0002305,7]
[379251538,1755227442634,-151.0,0.0002305,7]
[379251541,1755227442643,-151.0,0.0002305,7]
[379251543,1755227442652,-152.227002,0.0002305,7]
[379251546,1755227442662,-197.240693,0.0002305,7]
[379251549,1755227442671,-197.240693,0.0002305,7]
[379251551,1755227442680,-151.0,0.0002305,7]
[379251553,1755227442690,-151.0,0.0002305,7]
[379251556,1755227442699,-156.303694,0.0002305,7]
[379251559,1755227442707,-274.383721,0.0002305,7]
[379251562,1755227442715,-151.0,0.0002305,7]
[379251564,1755227442725,-151.0,0.0002305,7]
[379251566,1755227442734,-151.0,0.0002305,7]
[379251568,1755227442744,-269.650501,0.0002305,7]
[379251571,1755227442755,-151.0,0.0002305,7]
[379251574,1755227442765,-205.621955,0.0002305,7]
[379251577,1755227442774,-8391.95066089,0.0002305,2]
[379251579,1755227442784,-5000.0,0.0002305,2]
[379251581,1755227442793,-5000.0,0.0002305,2]
[379251583,1755227442803,-5000.0,0.0002305,2]
[379251585,1755227442812,-5000.0,0.0002305,2]
[379251587,1755227442821,-152.591547,0.0002306,7]
[379251589,1755227442830,-154.429872,0.0002306,7]
[379251591,1755227442840,-159.485596,0.0002306,7]
[379251593,1755227442849,-5034.21121731,0.0002306,2]
[379251595,1755227442858,-2258.0911784,0.00023072,2]
[379251597,1755227442867,-151.0,0.00023072,7]
[379251599,1755227442876,-151.0,0.00023072,7]
[379251601,1755227442885,-154.263789,0.00023072,7]
[379251603,1755227442894,-151.0,0.00023072,7]
[379251605,1755227442903,-168.0,0.00023087,2]
[379251607,1755227442912,-460.0,0.00023091,2]
[379251609,1755227442922,-460.0,0.00023115,2]
[379251611,1755227442931,-168.0,0.00023155,2]
[379251612,1755227442940,-2500.0,0.00023164,2]
[379251614,1755227442950,-2500.0,0.00023164,2]
[379251616,1755227442959,-2500.0,0.00023164,2]
[379251618,1755227442969,-1669.62,0.00023178,2]
[379251620,1755227442978,-154.400644,0.000232,7]
[379251623,1755227442989,-151.0,0.000232,7]
[379251624,1755227442999,-151.0,0.000232,7]
[379251627,1755227443010,-151.0,0.000232,7]
[379251628,1755227443019,-197.240693,0.000232,7]
[379251630,1755227443028,-197.240693,0.000232,7]
[379251632,1755227443038,-153.923064,0.000232,7]
[379251634,1755227443047,-168.0,0.00023227,2]
[379251636,1755227443056,-778.0,0.0002327,2]
[379251638,1755227443066,-151.0,0.0002327,7]